[Event "Titled Tuesday Blitz April 25 Early 2023"]
[White "Arpita, Mukherjee"]
[Black "Samunenkov, Ihor"]
[WhiteFideId "5056403"]
[BlackFideId "14187086"]
[WhiteElo "2129"]
[BlackElo "2457"]
[Result "1-0"]
[Round "06"]
[TimeControl "180+2"]
[Date "2023.04.25"]
[WhiteClock "0:00:05"]
[BlackClock "0:00:02"]

1. e4 {[%clk 0:02:54]}  c5 {[%clk 0:02:59]} 2. Nf3 {[%clk 0:02:52]}  Nc6 {[%clk 0:02:59]} 3. Bb5 {[%clk 0:02:52]}  e6 {[%clk 0:02:57]} 4. O-O {[%clk 0:02:51]}  Nge7 {[%clk 0:02:57]} 5. d4 {[%clk 0:02:50]}  cxd4 {[%clk 0:02:58]} 6. Nxd4 {[%clk 0:02:51]}  Ng6 {[%clk 0:02:58]} 7. Be3 {[%clk 0:02:49]}  Be7 {[%clk 0:02:58]} 8. Bxc6 {[%clk 0:02:45]}  bxc6 {[%clk 0:02:52]} 9. c4 {[%clk 0:02:45]}  O-O {[%clk 0:02:51]} 10. Nc3 {[%clk 0:02:44]}  c5 {[%clk 0:02:39]} 11. Nc2 {[%clk 0:02:43]}  Bb7 {[%clk 0:02:31]} 12. f3 {[%clk 0:02:37]}  f5 {[%clk 0:02:23]} 13. Qd2 {[%clk 0:02:16]}  fxe4 {[%clk 0:02:01]} 14. Nxe4 {[%clk 0:02:15]}  Qc7 {[%clk 0:01:58]} 15. Rad1 {[%clk 0:02:13]}  d5 {[%clk 0:01:58]} 16. cxd5 {[%clk 0:02:00]}  exd5 {[%clk 0:01:57]} 17. Ng3 {[%clk 0:01:59]}  d4 {[%clk 0:01:50]} 18. Bf2 {[%clk 0:01:38]}  Ne5 {[%clk 0:01:42]} 19. Rde1 {[%clk 0:00:59]}  Ba6 {[%clk 0:01:18]} 20. Rxe5 {[%clk 0:00:55]}  Qxe5 {[%clk 0:01:17]} 21. Re1 {[%clk 0:00:55]}  Qc7 {[%clk 0:01:16]} 22. b4 {[%clk 0:00:50]}  d3 {[%clk 0:01:14]} 23. Ne3 {[%clk 0:00:48]}  Bg5 {[%clk 0:01:12]} 24. Ne4 {[%clk 0:00:42]}  Bxe3 {[%clk 0:01:11]} 25. Bxe3 {[%clk 0:00:42]}  cxb4 {[%clk 0:01:09]} 26. Qxb4 {[%clk 0:00:42]}  Rab8 {[%clk 0:01:02]} 27. Qa3 {[%clk 0:00:36]}  Qc6 {[%clk 0:00:32]} 28. Rc1 {[%clk 0:00:32]}  Qg6 {[%clk 0:00:30]} 29. Kh1 {[%clk 0:00:17]}  Rfc8 {[%clk 0:00:24]} 30. Rd1 {[%clk 0:00:11]}  Qe6 {[%clk 0:00:18]} 31. Bf2 {[%clk 0:00:08]}  Rc2 {[%clk 0:00:17]} 32. Bg3 {[%clk 0:00:07]}  Rbc8 {[%clk 0:00:15]} 33. Nd6 {[%clk 0:00:07]}  Qe2 {[%clk 0:00:13]} 34. Rg1 {[%clk 0:00:08]}  R8c3 {[%clk 0:00:08]} 35. Qxa6 {[%clk 0:00:07]}  h6 {[%clk 0:00:03]} 36. Qxa7 {[%clk 0:00:05]}  Rc1 {[%clk 0:00:03]} 37. Qa8+ {[%clk 0:00:05]}  Rc8 {[%clk 0:00:01]} 38. Nxc8 {[%clk 0:00:03]}  Rxg1+ {[%clk 0:00:01]} 39. Kxg1 {[%clk 0:00:04]}  Qd1+ {[%clk 0:00:01]} 40. Kf2 {[%clk 0:00:05]}  Qe2+ {[%clk 0:00:02]} 41. Kg1 {[%clk 0:00:04]}  d2 {[%clk 0:00:02]} 42. Qd5+ {[%clk 0:00:04]}  Kh7 {[%clk 0:00:02]} 43. Qf5+ {[%clk 0:00:04]}  Kg8 {[%clk 0:00:02]} 44. Ne7+ {[%clk 0:00:04]}  Qxe7 {[%clk 0:00:02]} 45. Qd5+ {[%clk 0:00:04]}  Kh7 {[%clk 0:00:02]} 46. Qxd2 {[%clk 0:00:05]} 1-0


[Site "https://www.chess.com"]

[Event "Titled Tuesday Blitz April 25 Early 2023"]
[White "Karthik Rajaa"]
[Black "Camacho Collados, Jose"]
[WhiteFideId "25035215"]
[BlackFideId "2265427"]
[WhiteElo "2215"]
[BlackElo "2198"]
[Result "1-0"]
[Round "06"]
[TimeControl "180+2"]
[Date "2023.04.25"]
[WhiteClock "0:00:08"]
[BlackClock "0:00:01"]

1. Nf3 {[%clk 0:03:00]}  b6 {[%clk 0:02:58]} 2. g3 {[%clk 0:02:59]}  Bb7 {[%clk 0:02:59]} 3. Bg2 {[%clk 0:02:59]}  e6 {[%clk 0:02:59]} 4. b3 {[%clk 0:02:59]}  Nf6 {[%clk 0:02:59]} 5. Bb2 {[%clk 0:03:00]}  Be7 {[%clk 0:02:59]} 6. c4 {[%clk 0:03:00]}  O-O {[%clk 0:02:58]} 7. O-O {[%clk 0:03:01]}  d5 {[%clk 0:02:56]} 8. d3 {[%clk 0:02:53]}  c5 {[%clk 0:02:55]} 9. e3 {[%clk 0:02:53]}  Nc6 {[%clk 0:02:54]} 10. Qe2 {[%clk 0:02:53]}  h6 {[%clk 0:02:47]} 11. Nc3 {[%clk 0:02:42]}  a6 {[%clk 0:02:34]} 12. Rad1 {[%clk 0:02:41]}  d4 {[%clk 0:02:34]} 13. Nb1 {[%clk 0:02:40]}  e5 {[%clk 0:02:32]} 14. e4 {[%clk 0:02:40]}  Ne8 {[%clk 0:02:29]} 15. Ne1 {[%clk 0:02:33]}  Nd6 {[%clk 0:02:28]} 16. a3 {[%clk 0:02:29]}  b5 {[%clk 0:02:25]} 17. Nd2 {[%clk 0:02:28]}  Qd7 {[%clk 0:02:23]} 18. Nc2 {[%clk 0:02:23]}  Rae8 {[%clk 0:02:23]} 19. Rde1 {[%clk 0:02:21]}  Bg5 {[%clk 0:02:19]} 20. h4 {[%clk 0:02:20]}  Bd8 {[%clk 0:02:18]} 21. Kh2 {[%clk 0:02:19]}  Ba5 {[%clk 0:02:18]} 22. Bh3 {[%clk 0:02:18]}  Qd8 {[%clk 0:02:16]} 23. Rb1 {[%clk 0:01:21]}  Re7 {[%clk 0:02:06]} 24. b4 {[%clk 0:01:05]}  cxb4 {[%clk 0:02:03]} 25. Nb3 {[%clk 0:01:05]}  bxc4 {[%clk 0:01:57]} 26. Nxa5 {[%clk 0:01:05]}  cxd3 {[%clk 0:01:51]} 27. Qxd3 {[%clk 0:01:06]}  Nxa5 {[%clk 0:01:49]} 28. Nxb4 {[%clk 0:00:47]}  Bxe4 {[%clk 0:01:48]} 29. Qxa6 {[%clk 0:00:48]}  Bxb1 {[%clk 0:01:46]} 30. Rxb1 {[%clk 0:00:49]}  Ndc4 {[%clk 0:01:43]} 31. Bc1 {[%clk 0:00:43]}  d3 {[%clk 0:01:39]} 32. Bxh6 {[%clk 0:00:22]}  gxh6 {[%clk 0:01:33]} 33. Qxh6 {[%clk 0:00:23]}  Qd6 {[%clk 0:01:32]} 34. Qg5+ {[%clk 0:00:21]}  Kh8 {[%clk 0:01:30]} 35. Qh5+ {[%clk 0:00:19]}  Kg7 {[%clk 0:01:25]} 36. Qg5+ {[%clk 0:00:20]}  Qg6 {[%clk 0:01:26]} 37. Qxe7 {[%clk 0:00:20]}  d2 {[%clk 0:01:25]} 38. Rd1 {[%clk 0:00:19]}  Nb3 {[%clk 0:01:23]} 39. Nd5 {[%clk 0:00:17]}  Nb2 {[%clk 0:01:19]} 40. h5 {[%clk 0:00:18]}  Qxh5 {[%clk 0:01:17]} 41. Qf6+ {[%clk 0:00:17]}  Kh7 {[%clk 0:01:09]} 42. Qe7 {[%clk 0:00:16]}  Nxd1 {[%clk 0:00:10]} 43. Nf6+ {[%clk 0:00:15]}  Kg6 {[%clk 0:00:09]} 44. Nxh5 {[%clk 0:00:14]}  Nxf2 {[%clk 0:00:09]} 45. Qf6+ {[%clk 0:00:14]}  Kxh5 {[%clk 0:00:09]} 46. Qf5+ {[%clk 0:00:11]}  Kh6 {[%clk 0:00:09]} 47. Qf6+ {[%clk 0:00:10]}  Kh5 {[%clk 0:00:06]} 48. Bf5 {[%clk 0:00:09]}  d1=Q {[%clk 0:00:01]} 49. Qh4# {[%clk 0:00:08]} 1-0


[Site "https://www.chess.com"]

[Event "Titled Tuesday Blitz April 25 Early 2023"]
[White "Javakhadze, Zurab"]
[Black "Reprintsev, Alexander"]
[WhiteFideId "13603647"]
[BlackFideId "14100541"]
[WhiteElo "2381"]
[BlackElo "2211"]
[Result "1-0"]
[Round "06"]
[TimeControl "180+2"]
[Date "2023.04.25"]
[WhiteClock "0:01:24"]
[BlackClock "0:01:04"]

1. d4 {[%clk 0:03:00]}  d5 {[%clk 0:02:47]} 2. c4 {[%clk 0:03:01]}  e5 {[%clk 0:02:46]} 3. dxe5 {[%clk 0:02:56]}  d4 {[%clk 0:02:45]} 4. Nf3 {[%clk 0:02:56]}  Nc6 {[%clk 0:02:43]} 5. g3 {[%clk 0:02:44]}  Nge7 {[%clk 0:02:43]} 6. Bg2 {[%clk 0:02:43]}  Ng6 {[%clk 0:02:43]} 7. O-O {[%clk 0:02:44]}  Ngxe5 {[%clk 0:02:43]} 8. Nbd2 {[%clk 0:02:43]}  Nxf3+ {[%clk 0:02:43]} 9. Nxf3 {[%clk 0:02:43]}  Be7 {[%clk 0:02:44]} 10. e3 {[%clk 0:02:39]}  dxe3 {[%clk 0:02:33]} 11. Bxe3 {[%clk 0:02:38]}  O-O {[%clk 0:02:32]} 12. Bf4 {[%clk 0:02:37]}  Bg4 {[%clk 0:02:25]} 13. h3 {[%clk 0:02:33]}  Be6 {[%clk 0:02:17]} 14. b3 {[%clk 0:02:28]}  Bf6 {[%clk 0:02:17]} 15. Qxd8 {[%clk 0:02:19]}  Raxd8 {[%clk 0:02:16]} 16. Rad1 {[%clk 0:02:13]}  Rxd1 {[%clk 0:02:16]} 17. Rxd1 {[%clk 0:02:13]}  Rd8 {[%clk 0:02:16]} 18. Re1 {[%clk 0:01:57]}  Rd7 {[%clk 0:02:10]} 19. Ng5 {[%clk 0:01:56]}  Bxg5 {[%clk 0:01:37]} 20. Bxg5 {[%clk 0:01:56]}  a5 {[%clk 0:01:21]} 21. f4 {[%clk 0:01:38]}  h6 {[%clk 0:01:17]} 22. Bh4 {[%clk 0:01:38]}  Kf8 {[%clk 0:01:10]} 23. g4 {[%clk 0:01:36]}  f5 {[%clk 0:01:05]} 24. Rxe6 {[%clk 0:01:31]}  fxg4 {[%clk 0:01:04]} 25. Bxc6 {[%clk 0:01:24]} 1-0


[Site "https://www.chess.com"]

[Event "Titled Tuesday Blitz April 25 Early 2023"]
[White "Rodchenkov, Sergey D."]
[Black "Girya, Olga"]
[WhiteFideId "4168712"]
[BlackFideId "4195752"]
[WhiteElo "2277"]
[BlackElo "2263"]
[Result "1-0"]
[Round "06"]
[TimeControl "180+2"]
[Date "2023.04.25"]
[WhiteClock "0:00:13"]
[BlackClock "0:00:06"]

1. e4 {[%clk 0:03:00]}  e5 {[%clk 0:02:59]} 2. Nf3 {[%clk 0:03:01]}  Nc6 {[%clk 0:02:59]} 3. Bc4 {[%clk 0:03:01]}  Bc5 {[%clk 0:02:58]} 4. d3 {[%clk 0:03:01]}  Nf6 {[%clk 0:02:58]} 5. O-O {[%clk 0:03:02]}  d6 {[%clk 0:02:57]} 6. c3 {[%clk 0:03:03]}  h6 {[%clk 0:02:53]} 7. Nbd2 {[%clk 0:03:03]}  O-O {[%clk 0:02:52]} 8. Bb3 {[%clk 0:03:00]}  a5 {[%clk 0:02:43]} 9. h3 {[%clk 0:02:59]}  Be6 {[%clk 0:02:30]} 10. Ba4 {[%clk 0:02:52]}  Ba7 {[%clk 0:02:19]} 11. Re1 {[%clk 0:02:46]}  Rb8 {[%clk 0:02:13]} 12. Nf1 {[%clk 0:02:37]}  b5 {[%clk 0:02:11]} 13. Bc2 {[%clk 0:02:38]}  Ne7 {[%clk 0:02:01]} 14. d4 {[%clk 0:02:34]}  exd4 {[%clk 0:01:50]} 15. cxd4 {[%clk 0:02:35]}  d5 {[%clk 0:01:50]} 16. e5 {[%clk 0:02:24]}  Ne4 {[%clk 0:01:50]} 17. N1d2 {[%clk 0:02:11]}  Nxd2 {[%clk 0:01:32]} 18. Bxd2 {[%clk 0:02:12]}  c5 {[%clk 0:01:31]} 19. Qc1 {[%clk 0:02:13]}  cxd4 {[%clk 0:01:06]} 20. Bxh6 {[%clk 0:02:04]}  Nf5 {[%clk 0:00:50]} 21. Bg5 {[%clk 0:01:54]}  Qd7 {[%clk 0:00:42]} 22. Bxf5 {[%clk 0:01:26]}  Bxf5 {[%clk 0:00:42]} 23. Bf6 {[%clk 0:01:26]}  Bg6 {[%clk 0:00:16]} 24. Qg5 {[%clk 0:00:47]}  Rfe8 {[%clk 0:00:11]} 25. Nh4 {[%clk 0:00:21]}  Rbc8 {[%clk 0:00:11]} 26. Nxg6 {[%clk 0:00:18]}  fxg6 {[%clk 0:00:12]} 27. Qxg6 {[%clk 0:00:19]}  Qf7 {[%clk 0:00:11]} 28. Qg4 {[%clk 0:00:20]}  d3 {[%clk 0:00:07]} 29. Kh1 {[%clk 0:00:17]}  Rc2 {[%clk 0:00:05]} 30. Rad1 {[%clk 0:00:12]}  d2 {[%clk 0:00:05]} 31. Re2 {[%clk 0:00:09]}  Kf8 {[%clk 0:00:05]} 32. Bg5 {[%clk 0:00:06]}  Qe6 {[%clk 0:00:05]} 33. Rexd2 {[%clk 0:00:04]}  Qxg4 {[%clk 0:00:04]} 34. hxg4 {[%clk 0:00:05]}  Rxd2 {[%clk 0:00:04]} 35. Rxd2 {[%clk 0:00:05]}  Rxe5 {[%clk 0:00:04]} 36. Bf4 {[%clk 0:00:06]}  Re1+ {[%clk 0:00:05]} 37. Kh2 {[%clk 0:00:06]}  d4 {[%clk 0:00:05]} 38. Kg3 {[%clk 0:00:04]}  Rb1 {[%clk 0:00:05]} 39. Kf3 {[%clk 0:00:04]}  b4 {[%clk 0:00:04]} 40. g3 {[%clk 0:00:04]}  a4 {[%clk 0:00:05]} 41. Bd6+ {[%clk 0:00:05]}  Kf7 {[%clk 0:00:04]} 42. Bxb4 {[%clk 0:00:06]}  Ke6 {[%clk 0:00:05]} 43. a3 {[%clk 0:00:06]}  Kd5 {[%clk 0:00:05]} 44. Rc2 {[%clk 0:00:06]}  d3 {[%clk 0:00:04]} 45. Rd2 {[%clk 0:00:06]}  Kc4 {[%clk 0:00:04]} 46. Kf4 {[%clk 0:00:04]}  Rf1 {[%clk 0:00:04]} 47. f3 {[%clk 0:00:04]}  Re1 {[%clk 0:00:04]} 48. Kf5 {[%clk 0:00:04]}  Re2 {[%clk 0:00:03]} 49. Rd1 {[%clk 0:00:04]}  Be3 {[%clk 0:00:02]} 50. f4 {[%clk 0:00:04]}  Rf2 {[%clk 0:00:02]} 51. g5 {[%clk 0:00:04]}  Rg2 {[%clk 0:00:03]} 52. Ke4 {[%clk 0:00:04]}  d2 {[%clk 0:00:03]} 53. Kxe3 {[%clk 0:00:04]}  Rxg3+ {[%clk 0:00:03]} 54. Kxd2 {[%clk 0:00:05]}  Rd3+ {[%clk 0:00:03]} 55. Kc1 {[%clk 0:00:06]}  Rf3 {[%clk 0:00:03]} 56. Rd2 {[%clk 0:00:04]}  Rxf4 {[%clk 0:00:03]} 57. Kc2 {[%clk 0:00:05]}  Kb5 {[%clk 0:00:03]} 58. Bc3 {[%clk 0:00:06]}  Kc4 {[%clk 0:00:03]} 59. Rg2 {[%clk 0:00:06]}  g6 {[%clk 0:00:03]} 60. Be5 {[%clk 0:00:06]}  Re4 {[%clk 0:00:03]} 61. Bc3 {[%clk 0:00:07]}  Rf4 {[%clk 0:00:04]} 62. Rd2 {[%clk 0:00:07]}  Rf5 {[%clk 0:00:04]} 63. Rd4+ {[%clk 0:00:07]}  Kb5 {[%clk 0:00:04]} 64. Rb4+ {[%clk 0:00:08]}  Kc6 {[%clk 0:00:04]} 65. Kd3 {[%clk 0:00:08]}  Rxg5 {[%clk 0:00:04]} 66. Rxa4 {[%clk 0:00:09]}  Rg3+ {[%clk 0:00:05]} 67. Kc4 {[%clk 0:00:09]}  g5 {[%clk 0:00:05]} 68. Ra6+ {[%clk 0:00:10]}  Kb7 {[%clk 0:00:06]} 69. Rg6 {[%clk 0:00:10]}  Rg2 {[%clk 0:00:06]} 70. Kb3 {[%clk 0:00:11]}  g4 {[%clk 0:00:06]} 71. a4 {[%clk 0:00:12]}  g3 {[%clk 0:00:06]} 72. Be5 {[%clk 0:00:12]}  Re2 {[%clk 0:00:05]} 73. Bxg3 {[%clk 0:00:12]}  Re3+ {[%clk 0:00:06]} 74. Ka2 {[%clk 0:00:12]}  Re4 {[%clk 0:00:06]} 75. b3 {[%clk 0:00:13]} 1-0


[Site "https://www.chess.com"]

[Event "Titled Tuesday Blitz April 25 Early 2023"]
[White "Sviridov, Valery"]
[Black "Shvedova, Alexandra"]
[WhiteFideId "4120680"]
[BlackFideId "54154782"]
[WhiteElo "2457"]
[BlackElo "2057"]
[Result "1-0"]
[Round "06"]
[TimeControl "180+2"]
[Date "2023.04.25"]
[WhiteClock "0:01:24"]
[BlackClock "0:00:34"]

1. d4 {[%clk 0:02:53]}  e6 {[%clk 0:02:59]} 2. Nf3 {[%clk 0:02:53]}  Nf6 {[%clk 0:02:59]} 3. e3 {[%clk 0:02:54]}  b6 {[%clk 0:03:00]} 4. Nbd2 {[%clk 0:02:54]}  Bb7 {[%clk 0:03:00]} 5. Bd3 {[%clk 0:02:55]}  c5 {[%clk 0:02:58]} 6. O-O {[%clk 0:02:55]}  Be7 {[%clk 0:02:55]} 7. c3 {[%clk 0:02:54]}  O-O {[%clk 0:02:55]} 8. Qe2 {[%clk 0:02:53]}  d5 {[%clk 0:02:48]} 9. Ne5 {[%clk 0:02:51]}  Nbd7 {[%clk 0:02:46]} 10. f4 {[%clk 0:02:52]}  Qc7 {[%clk 0:02:38]} 11. Qf3 {[%clk 0:02:52]}  a5 {[%clk 0:02:31]} 12. g4 {[%clk 0:02:45]}  Ba6 {[%clk 0:02:30]} 13. Bxa6 {[%clk 0:02:45]}  Rxa6 {[%clk 0:02:31]} 14. g5 {[%clk 0:02:45]}  Ne8 {[%clk 0:02:29]} 15. a4 {[%clk 0:02:37]}  f6 {[%clk 0:02:26]} 16. gxf6 {[%clk 0:02:34]}  Nexf6 {[%clk 0:02:24]} 17. Qh3 {[%clk 0:02:27]}  Qd6 {[%clk 0:02:17]} 18. Kh1 {[%clk 0:02:26]}  Ne4 {[%clk 0:02:01]} 19. Nxe4 {[%clk 0:02:25]}  dxe4 {[%clk 0:02:02]} 20. Rg1 {[%clk 0:02:15]}  Nxe5 {[%clk 0:01:59]} 21. fxe5 {[%clk 0:02:16]}  Qd7 {[%clk 0:01:53]} 22. Qg2 {[%clk 0:02:15]}  Bd8 {[%clk 0:01:46]} 23. Qxe4 {[%clk 0:02:14]}  Qf7 {[%clk 0:01:46]} 24. Bd2 {[%clk 0:02:13]}  Ra7 {[%clk 0:01:41]} 25. Qg2 {[%clk 0:02:10]}  Qf5 {[%clk 0:01:37]} 26. Raf1 {[%clk 0:02:09]}  Qd3 {[%clk 0:01:33]} 27. Rxf8+ {[%clk 0:02:08]}  Kxf8 {[%clk 0:01:34]} 28. Qf1+ {[%clk 0:02:08]}  Qxf1 {[%clk 0:01:32]} 29. Rxf1+ {[%clk 0:02:09]}  Ke8 {[%clk 0:01:31]} 30. Kg2 {[%clk 0:02:09]}  Bg5 {[%clk 0:01:27]} 31. Bc1 {[%clk 0:02:04]}  Rd7 {[%clk 0:01:20]} 32. Kf3 {[%clk 0:01:54]}  Ke7 {[%clk 0:00:57]} 33. Ke4 {[%clk 0:01:51]}  Ke8 {[%clk 0:00:54]} 34. c4 {[%clk 0:01:51]}  cxd4 {[%clk 0:00:49]} 35. exd4 {[%clk 0:01:52]}  Bxc1 {[%clk 0:00:48]} 36. Rxc1 {[%clk 0:01:53]}  Rf7 {[%clk 0:00:49]} 37. Ke3 {[%clk 0:01:33]}  Rf5 {[%clk 0:00:47]} 38. c5 {[%clk 0:01:29]}  bxc5 {[%clk 0:00:47]} 39. Rxc5 {[%clk 0:01:30]}  Rh5 {[%clk 0:00:47]} 40. Rxa5 {[%clk 0:01:30]}  Rxh2 {[%clk 0:00:47]} 41. Rb5 {[%clk 0:01:30]}  Rh3+ {[%clk 0:00:47]} 42. Ke4 {[%clk 0:01:25]}  g5 {[%clk 0:00:43]} 43. a5 {[%clk 0:01:24]}  g4 {[%clk 0:00:43]} 44. a6 {[%clk 0:01:24]}  g3 {[%clk 0:00:33]} 45. a7 {[%clk 0:01:24]}  Rh4+ {[%clk 0:00:34]} 46. Kf3 {[%clk 0:01:24]} 1-0


[Site "https://www.chess.com"]

[Event "Titled Tuesday Blitz April 25 Early 2023"]
[White "The_Sherman_Variation"]
[Black "Skvortsov, Andrei"]
[BlackFideId "24108600"]
[WhiteElo "2521"]
[BlackElo "2259"]
[Result "0-1"]
[Round "06"]
[TimeControl "180+2"]
[Date "2023.04.25"]
[WhiteClock "0:00:24"]
[BlackClock "0:01:11"]

1. Nf3 {[%clk 0:03:00]}  c5 {[%clk 0:02:56]} 2. g3 {[%clk 0:03:00]}  d6 {[%clk 0:02:55]} 3. Bg2 {[%clk 0:03:01]}  e5 {[%clk 0:02:55]} 4. d3 {[%clk 0:03:00]}  Be7 {[%clk 0:02:54]} 5. O-O {[%clk 0:03:00]}  Nc6 {[%clk 0:02:55]} 6. c4 {[%clk 0:03:01]}  f5 {[%clk 0:02:55]} 7. a3 {[%clk 0:02:58]}  Nf6 {[%clk 0:02:56]} 8. Nc3 {[%clk 0:02:58]}  O-O {[%clk 0:02:55]} 9. Rb1 {[%clk 0:02:58]}  a5 {[%clk 0:02:53]} 10. Nd5 {[%clk 0:02:55]}  Nxd5 {[%clk 0:02:52]} 11. cxd5 {[%clk 0:02:56]}  Nd4 {[%clk 0:02:51]} 12. b4 {[%clk 0:02:51]}  Nxf3+ {[%clk 0:02:49]} 13. Bxf3 {[%clk 0:02:50]}  axb4 {[%clk 0:02:49]} 14. axb4 {[%clk 0:02:50]}  b6 {[%clk 0:02:50]} 15. Bd2 {[%clk 0:02:39]}  Bd7 {[%clk 0:02:49]} 16. Bg2 {[%clk 0:02:36]}  g5 {[%clk 0:02:45]} 17. f4 {[%clk 0:02:35]}  exf4 {[%clk 0:02:43]} 18. gxf4 {[%clk 0:02:35]}  g4 {[%clk 0:02:43]} 19. e4 {[%clk 0:02:32]}  Bf6 {[%clk 0:02:43]} 20. Kh1 {[%clk 0:02:25]}  Ra2 {[%clk 0:02:38]} 21. Qe1 {[%clk 0:02:17]}  Bh4 {[%clk 0:02:29]} 22. Qe3 {[%clk 0:02:16]}  Bf6 {[%clk 0:02:28]} 23. Rbd1 {[%clk 0:02:00]}  Re8 {[%clk 0:02:26]} 24. h3 {[%clk 0:01:50]}  h5 {[%clk 0:02:21]} 25. bxc5 {[%clk 0:01:33]}  bxc5 {[%clk 0:02:20]} 26. e5 {[%clk 0:01:31]}  dxe5 {[%clk 0:02:15]} 27. Qxc5 {[%clk 0:01:23]}  exf4 {[%clk 0:02:11]} 28. Qc4 {[%clk 0:01:13]}  Ra4 {[%clk 0:02:09]} 29. Qb3 {[%clk 0:01:06]}  f3 {[%clk 0:02:06]} 30. Bxf3 {[%clk 0:01:04]}  gxf3 {[%clk 0:02:07]} 31. Rg1+ {[%clk 0:01:03]}  Kh7 {[%clk 0:02:05]} 32. d4 {[%clk 0:00:57]}  Qe7 {[%clk 0:01:47]} 33. Rde1 {[%clk 0:00:49]}  Qf7 {[%clk 0:01:47]} 34. Qxf3 {[%clk 0:00:46]}  Rxd4 {[%clk 0:01:41]} 35. Rxe8 {[%clk 0:00:40]}  Qxe8 {[%clk 0:01:42]} 36. Re1 {[%clk 0:00:28]}  Qf7 {[%clk 0:01:36]} 37. Bc3 {[%clk 0:00:27]}  Rxd5 {[%clk 0:01:20]} 38. Bxf6 {[%clk 0:00:27]}  Bc6 {[%clk 0:01:15]} 39. Re7 {[%clk 0:00:18]}  Qxe7 {[%clk 0:01:14]} 40. Bxe7 {[%clk 0:00:19]}  Rd1+ {[%clk 0:01:14]} 41. Kg2 {[%clk 0:00:20]}  Rd2+ {[%clk 0:01:11]} 42. Kg3 {[%clk 0:00:20]}  Bxf3 {[%clk 0:01:09]} 43. Kxf3 {[%clk 0:00:21]}  Rd3+ {[%clk 0:01:09]} 44. Kg2 {[%clk 0:00:21]}  Kg6 {[%clk 0:01:09]} 45. h4 {[%clk 0:00:21]}  Kf7 {[%clk 0:01:09]} 46. Bg5 {[%clk 0:00:21]}  Ke6 {[%clk 0:01:10]} 47. Kf2 {[%clk 0:00:22]}  Kd5 {[%clk 0:01:11]} 48. Ke2 {[%clk 0:00:22]}  Ke4 {[%clk 0:01:11]} 49. Kf2 {[%clk 0:00:23]}  f4 {[%clk 0:01:11]} 50. Ke2 {[%clk 0:00:24]}  Ra3 {[%clk 0:01:10]} 51. Kf2 {[%clk 0:00:24]}  Ra2+ {[%clk 0:01:11]} 0-1


[Site "https://www.chess.com"]

[Event "Titled Tuesday Blitz April 25 Early 2023"]
[White "Goldin, Alexander"]
[Black "Bilan, Danila"]
[WhiteFideId "2019540"]
[BlackFideId "24161918"]
[WhiteElo "2662"]
[BlackElo "2182"]
[Result "1-0"]
[Round "06"]
[TimeControl "180+2"]
[Date "2023.04.25"]
[WhiteClock "0:00:25"]
[BlackClock "0:00:02"]

1. Nf3 {[%clk 0:03:00]}  d5 {[%clk 0:03:00]} 2. g3 {[%clk 0:03:00]}  Nf6 {[%clk 0:03:00]} 3. Bg2 {[%clk 0:02:59]}  Bf5 {[%clk 0:02:58]} 4. c4 {[%clk 0:02:56]}  c6 {[%clk 0:02:58]} 5. Qb3 {[%clk 0:02:53]}  Qb6 {[%clk 0:02:50]} 6. d3 {[%clk 0:02:53]}  Nbd7 {[%clk 0:02:45]} 7. Be3 {[%clk 0:02:53]}  Qxb3 {[%clk 0:02:32]} 8. axb3 {[%clk 0:02:52]}  a6 {[%clk 0:02:26]} 9. Nc3 {[%clk 0:02:51]}  e6 {[%clk 0:02:24]} 10. Nh4 {[%clk 0:02:35]}  Bg6 {[%clk 0:02:19]} 11. Nxg6 {[%clk 0:02:35]}  hxg6 {[%clk 0:02:20]} 12. h3 {[%clk 0:02:32]}  Bb4 {[%clk 0:01:41]} 13. O-O {[%clk 0:02:24]}  Nc5 {[%clk 0:01:35]} 14. Na2 {[%clk 0:02:20]}  d4 {[%clk 0:01:09]} 15. Bxd4 {[%clk 0:01:51]}  Nxb3 {[%clk 0:01:05]} 16. Bxf6 {[%clk 0:01:51]}  gxf6 {[%clk 0:01:01]} 17. Nxb4 {[%clk 0:01:50]}  Nxa1 {[%clk 0:01:01]} 18. Rxa1 {[%clk 0:01:50]}  e5 {[%clk 0:00:55]} 19. Na2 {[%clk 0:01:42]}  Kd7 {[%clk 0:00:51]} 20. Nc3 {[%clk 0:01:42]}  b6 {[%clk 0:00:46]} 21. Kf1 {[%clk 0:01:39]}  Kc7 {[%clk 0:00:41]} 22. Ke1 {[%clk 0:01:39]}  a5 {[%clk 0:00:35]} 23. Kd2 {[%clk 0:01:39]}  f5 {[%clk 0:00:28]} 24. h4 {[%clk 0:01:34]}  f6 {[%clk 0:00:26]} 25. e3 {[%clk 0:01:28]}  g5 {[%clk 0:00:23]} 26. Rh1 {[%clk 0:01:20]}  Rag8 {[%clk 0:00:20]} 27. Bf3 {[%clk 0:01:20]}  Rg7 {[%clk 0:00:18]} 28. hxg5 {[%clk 0:00:48]}  Rxh1 {[%clk 0:00:17]} 29. gxf6 {[%clk 0:00:43]}  Rf7 {[%clk 0:00:09]} 30. Bxh1 {[%clk 0:00:42]}  Rxf6 {[%clk 0:00:10]} 31. Bf3 {[%clk 0:00:37]}  Rh6 {[%clk 0:00:07]} 32. Ke2 {[%clk 0:00:35]}  Kd6 {[%clk 0:00:05]} 33. d4 {[%clk 0:00:33]}  Rh8 {[%clk 0:00:05]} 34. dxe5+ {[%clk 0:00:32]}  Kxe5 {[%clk 0:00:06]} 35. Bxc6 {[%clk 0:00:31]}  Rc8 {[%clk 0:00:06]} 36. Bd5 {[%clk 0:00:31]}  Rh8 {[%clk 0:00:03]} 37. Nb5 {[%clk 0:00:27]}  Rh7 {[%clk 0:00:01]} 38. Nd4 {[%clk 0:00:27]}  Ra7 {[%clk 0:00:01]} 39. f4+ {[%clk 0:00:27]}  Kd6 {[%clk 0:00:02]} 40. Nxf5+ {[%clk 0:00:27]}  Kc5 {[%clk 0:00:02]} 41. Nd4 {[%clk 0:00:26]}  Kb4 {[%clk 0:00:02]} 42. Nc6+ {[%clk 0:00:25]} 1-0


[Site "https://www.chess.com"]